[Event "Titled Tuesday Blitz February 28 Early 2023"]
[White "Devaev, Alexander"]
[Black "Rose, Felix"]
[WhiteFideId "4169395"]
[BlackFideId "5105722"]
[WhiteElo "2225"]
[BlackElo "2039"]
[Result "0-1"]
[Round "07"]
[TimeControl "180+2"]
[Date "2023.02.28"]
[WhiteClock "0:00:02"]
[BlackClock "0:01:17"]

1. d4 {[%clk 0:02:21]}  d5 {[%clk 0:02:59]} 2. c4 {[%clk 0:02:21]}  e6 {[%clk 0:03:00]} 3. Nc3 {[%clk 0:02:20]}  Nf6 {[%clk 0:03:00]} 4. Nf3 {[%clk 0:02:21]}  Be7 {[%clk 0:03:00]} 5. Bg5 {[%clk 0:02:21]}  Nbd7 {[%clk 0:03:00]} 6. e3 {[%clk 0:02:21]}  h6 {[%clk 0:03:00]} 7. Bh4 {[%clk 0:02:21]}  O-O {[%clk 0:03:01]} 8. Rc1 {[%clk 0:02:17]}  c5 {[%clk 0:03:01]} 9. cxd5 {[%clk 0:02:12]}  cxd4 {[%clk 0:02:59]} 10. Qxd4 {[%clk 0:01:58]}  Nxd5 {[%clk 0:02:48]} 11. Nxd5 {[%clk 0:01:52]}  exd5 {[%clk 0:02:40]} 12. Bxe7 {[%clk 0:01:50]}  Qxe7 {[%clk 0:02:41]} 13. Be2 {[%clk 0:01:47]}  Nf6 {[%clk 0:02:31]} 14. O-O {[%clk 0:01:48]}  Be6 {[%clk 0:02:30]} 15. Rc2 {[%clk 0:01:22]}  a6 {[%clk 0:02:29]} 16. Rfc1 {[%clk 0:01:21]}  Bf5 {[%clk 0:02:27]} 17. Rc7 {[%clk 0:01:19]}  Qd6 {[%clk 0:02:17]} 18. Rxb7 {[%clk 0:01:12]}  Rfc8 {[%clk 0:02:16]} 19. Rd1 {[%clk 0:01:06]}  Rc2 {[%clk 0:02:05]} 20. Rb6 {[%clk 0:00:43]}  Qc7 {[%clk 0:02:01]} 21. Bxa6 {[%clk 0:00:17]}  Rc1 {[%clk 0:01:50]} 22. Rb7 {[%clk 0:00:09]}  Qc2 {[%clk 0:01:42]} 23. Be2 {[%clk 0:00:07]}  Ne4 {[%clk 0:01:29]} 24. Rxc1 {[%clk 0:00:06]}  Qxc1+ {[%clk 0:01:23]} 25. Qd1 {[%clk 0:00:06]}  Qc6 {[%clk 0:01:23]} 26. Rb4 {[%clk 0:00:04]}  Rxa2 {[%clk 0:01:23]} 27. h3 {[%clk 0:00:04]}  Kh7 {[%clk 0:01:22]} 28. Nd4 {[%clk 0:00:03]}  Qf6 {[%clk 0:01:21]} 29. Bd3 {[%clk 0:00:02]}  Bg6 {[%clk 0:01:21]} 30. Nf3 {[%clk 0:00:02]}  Rxb2 {[%clk 0:01:19]} 31. Rxb2 {[%clk 0:00:02]}  Qxb2 {[%clk 0:01:19]} 32. Bxe4 {[%clk 0:00:03]}  Bxe4 {[%clk 0:01:19]} 33. Nd4 {[%clk 0:00:02]}  f6 {[%clk 0:01:19]} 34. Kh2 {[%clk 0:00:02]}  Qxf2 {[%clk 0:01:19]} 35. Qg4 {[%clk 0:00:02]}  Qxe3 {[%clk 0:01:17]} 0-1


[Site "https://www.chess.com"]

[Event "Titled Tuesday Blitz February 28 Early 2023"]
[White "Kuchava, Ana"]
[Black "Pein, Jonathan"]
[WhiteFideId "13605348"]
[BlackFideId "417092"]
[WhiteElo "2001"]
[BlackElo "2151"]
[Result "1-0"]
[Round "07"]
[TimeControl "180+2"]
[Date "2023.02.28"]
[WhiteClock "0:00:13"]
[BlackClock "0:00:08"]

1. d4 {[%clk 0:03:00]}  d6 {[%clk 0:02:57]} 2. Nf3 {[%clk 0:02:59]}  g6 {[%clk 0:02:53]} 3. c4 {[%clk 0:02:57]}  Bg7 {[%clk 0:02:53]} 4. Nc3 {[%clk 0:02:57]}  Nf6 {[%clk 0:02:52]} 5. e4 {[%clk 0:02:57]}  O-O {[%clk 0:02:52]} 6. Be2 {[%clk 0:02:55]}  Bg4 {[%clk 0:02:52]} 7. O-O {[%clk 0:02:54]}  c5 {[%clk 0:02:50]} 8. d5 {[%clk 0:02:53]}  b5 {[%clk 0:02:48]} 9. cxb5 {[%clk 0:02:49]}  a6 {[%clk 0:02:49]} 10. bxa6 {[%clk 0:02:38]}  Nxa6 {[%clk 0:02:46]} 11. Be3 {[%clk 0:02:12]}  Qb6 {[%clk 0:02:45]} 12. a3 {[%clk 0:02:07]}  Nd7 {[%clk 0:02:42]} 13. Qc2 {[%clk 0:02:05]}  Rfb8 {[%clk 0:02:41]} 14. Rab1 {[%clk 0:02:00]}  Bxf3 {[%clk 0:02:10]} 15. Bxf3 {[%clk 0:01:57]}  Qb3 {[%clk 0:02:01]} 16. Qxb3 {[%clk 0:01:47]}  Rxb3 {[%clk 0:02:02]} 17. Bd1 {[%clk 0:01:45]}  Rb7 {[%clk 0:02:02]} 18. Ba4 {[%clk 0:01:44]}  Nb6 {[%clk 0:01:51]} 19. Bc6 {[%clk 0:01:43]}  Rab8 {[%clk 0:01:43]} 20. Bxb7 {[%clk 0:01:42]}  Rxb7 {[%clk 0:01:44]} 21. Rfc1 {[%clk 0:01:13]}  Nc4 {[%clk 0:01:44]} 22. Na4 {[%clk 0:01:11]}  Nxe3 {[%clk 0:01:34]} 23. fxe3 {[%clk 0:01:10]}  Rb3 {[%clk 0:01:35]} 24. Kf2 {[%clk 0:01:06]}  h5 {[%clk 0:01:32]} 25. Rc4 {[%clk 0:01:00]}  Nb8 {[%clk 0:01:25]} 26. Ke2 {[%clk 0:00:51]}  Nd7 {[%clk 0:01:25]} 27. Rbc1 {[%clk 0:00:43]}  Ne5 {[%clk 0:01:17]} 28. R4c3 {[%clk 0:00:41]}  Rb7 {[%clk 0:01:09]} 29. R3c2 {[%clk 0:00:34]}  h4 {[%clk 0:01:07]} 30. h3 {[%clk 0:00:34]}  Bf6 {[%clk 0:00:55]} 31. Nc3 {[%clk 0:00:26]}  Bg5 {[%clk 0:00:45]} 32. Nd1 {[%clk 0:00:21]}  Kf8 {[%clk 0:00:36]} 33. Ra1 {[%clk 0:00:21]}  c4 {[%clk 0:00:24]} 34. a4 {[%clk 0:00:19]}  Ke8 {[%clk 0:00:20]} 35. a5 {[%clk 0:00:19]}  Kd7 {[%clk 0:00:20]} 36. a6 {[%clk 0:00:19]}  Ra7 {[%clk 0:00:21]} 37. Nc3 {[%clk 0:00:19]}  Nd3 {[%clk 0:00:17]} 38. Nb5 {[%clk 0:00:19]}  Ra8 {[%clk 0:00:17]} 39. Rxc4 {[%clk 0:00:19]}  Nc5 {[%clk 0:00:18]} 40. a7 {[%clk 0:00:18]}  Bf6 {[%clk 0:00:17]} 41. Ra6 {[%clk 0:00:16]}  Bxb2 {[%clk 0:00:17]} 42. Rc6 {[%clk 0:00:15]}  e6 {[%clk 0:00:07]} 43. Rc7+ {[%clk 0:00:14]}  Ke8 {[%clk 0:00:08]} 44. Nxd6+ {[%clk 0:00:13]}  Kd8 {[%clk 0:00:08]} 45. R4xc5 {[%clk 0:00:13]} 1-0


[Site "https://www.chess.com"]

[Event "Titled Tuesday Blitz February 28 Early 2023"]
[White "Mohammed, Zozek Salah Mohammed"]
[Black "Winkels, Marcel"]
[WhiteFideId "4803361"]
[BlackFideId "1003887"]
[WhiteElo "2211"]
[BlackElo "1900"]
[Result "1-0"]
[Round "07"]
[TimeControl "180+2"]
[Date "2023.02.28"]
[WhiteClock "0:01:46"]
[BlackClock "0:00:34"]

1. d4 {[%clk 0:02:55]}  Nf6 {[%clk 0:02:58]} 2. Nf3 {[%clk 0:02:56]}  g6 {[%clk 0:02:58]} 3. g3 {[%clk 0:02:57]}  Bg7 {[%clk 0:02:58]} 4. Bg2 {[%clk 0:02:57]}  d5 {[%clk 0:02:57]} 5. O-O {[%clk 0:02:58]}  O-O {[%clk 0:02:57]} 6. c4 {[%clk 0:02:58]}  c6 {[%clk 0:02:56]} 7. Nc3 {[%clk 0:02:55]}  dxc4 {[%clk 0:02:53]} 8. Ne5 {[%clk 0:02:55]}  Ng4 {[%clk 0:02:51]} 9. Nf3 {[%clk 0:02:52]}  b5 {[%clk 0:02:46]} 10. a4 {[%clk 0:02:52]}  Bb7 {[%clk 0:02:36]} 11. axb5 {[%clk 0:02:50]}  cxb5 {[%clk 0:02:35]} 12. Nxb5 {[%clk 0:02:51]}  Nc6 {[%clk 0:02:33]} 13. h3 {[%clk 0:02:47]}  Nf6 {[%clk 0:02:20]} 14. Bd2 {[%clk 0:02:46]}  a6 {[%clk 0:02:19]} 15. Na3 {[%clk 0:02:45]}  Nxd4 {[%clk 0:02:16]} 16. Nxc4 {[%clk 0:02:45]}  Nxf3+ {[%clk 0:02:07]} 17. exf3 {[%clk 0:02:46]}  Rc8 {[%clk 0:02:06]} 18. Na5 {[%clk 0:02:43]}  Ba8 {[%clk 0:02:04]} 19. Bc3 {[%clk 0:02:43]}  Nd5 {[%clk 0:01:58]} 20. Bxg7 {[%clk 0:02:42]}  Kxg7 {[%clk 0:01:57]} 21. Qd4+ {[%clk 0:02:43]}  Kg8 {[%clk 0:01:55]} 22. f4 {[%clk 0:02:44]}  e6 {[%clk 0:01:54]} 23. Rfd1 {[%clk 0:02:43]}  Rc2 {[%clk 0:01:49]} 24. Nc4 {[%clk 0:02:37]}  Qc7 {[%clk 0:01:37]} 25. Ne5 {[%clk 0:02:29]}  Bb7 {[%clk 0:01:35]} 26. Ng4 {[%clk 0:02:29]}  h5 {[%clk 0:01:30]} 27. Bxd5 {[%clk 0:02:23]}  hxg4 {[%clk 0:01:22]} 28. Bxb7 {[%clk 0:02:23]}  Qxb7 {[%clk 0:01:20]} 29. hxg4 {[%clk 0:02:23]}  Rxb2 {[%clk 0:01:10]} 30. g5 {[%clk 0:02:18]}  Rc8 {[%clk 0:01:06]} 31. Rac1 {[%clk 0:02:04]}  Rbc2 {[%clk 0:01:00]} 32. Rxc2 {[%clk 0:02:02]}  Rxc2 {[%clk 0:00:59]} 33. Qd8+ {[%clk 0:02:03]}  Kh7 {[%clk 0:00:58]} 34. Qf8 {[%clk 0:01:56]}  Rc7 {[%clk 0:00:50]} 35. Kh2 {[%clk 0:01:51]}  Qf3 {[%clk 0:00:44]} 36. Rd2 {[%clk 0:01:51]}  a5 {[%clk 0:00:37]} 37. Qh6+ {[%clk 0:01:45]}  Kg8 {[%clk 0:00:34]} 38. Rd8# {[%clk 0:01:46]} 1-0


[Site "https://www.chess.com"]

[Event "Titled Tuesday Blitz February 28 Early 2023"]
[White "Fabris, Alberto"]
[Black "Hajiyev, Kanan"]
[WhiteFideId "801348"]
[BlackFideId "13404148"]
[WhiteElo "2135"]
[BlackElo "2103"]
[Result "0-1"]
[Round "07"]
[TimeControl "180+2"]
[Date "2023.02.28"]
[WhiteClock "0:00:01"]
[BlackClock "0:00:17"]

1. e4 {[%clk 0:03:00]}  c6 {[%clk 0:02:59]} 2. d4 {[%clk 0:02:56]}  d5 {[%clk 0:03:00]} 3. e5 {[%clk 0:02:56]}  a6 {[%clk 0:03:01]} 4. Bd3 {[%clk 0:02:54]}  c5 {[%clk 0:03:01]} 5. c3 {[%clk 0:02:54]}  cxd4 {[%clk 0:03:01]} 6. cxd4 {[%clk 0:02:54]}  Nc6 {[%clk 0:03:02]} 7. Be3 {[%clk 0:02:53]}  Qb6 {[%clk 0:03:01]} 8. Qb3 {[%clk 0:02:50]}  Qxb3 {[%clk 0:03:01]} 9. axb3 {[%clk 0:02:49]}  Nb4 {[%clk 0:03:01]} 10. Ke2 {[%clk 0:02:43]}  Nxd3 {[%clk 0:03:01]} 11. Kxd3 {[%clk 0:02:43]}  Bf5+ {[%clk 0:03:02]} 12. Ke2 {[%clk 0:02:41]}  Rc8 {[%clk 0:03:02]} 13. Nc3 {[%clk 0:02:39]}  e6 {[%clk 0:03:03]} 14. Nf3 {[%clk 0:02:36]}  Bb4 {[%clk 0:03:03]} 15. Rhc1 {[%clk 0:02:35]}  Ne7 {[%clk 0:02:55]} 16. Na4 {[%clk 0:02:26]}  O-O {[%clk 0:02:48]} 17. Nb6 {[%clk 0:02:13]}  Rc6 {[%clk 0:02:41]} 18. Rxc6 {[%clk 0:02:10]}  Nxc6 {[%clk 0:02:42]} 19. Rc1 {[%clk 0:02:01]}  h6 {[%clk 0:02:39]} 20. Ne1 {[%clk 0:01:54]}  g5 {[%clk 0:02:36]} 21. Nd3 {[%clk 0:01:51]}  Bxd3+ {[%clk 0:02:30]} 22. Kxd3 {[%clk 0:01:51]}  Rd8 {[%clk 0:02:22]} 23. h4 {[%clk 0:01:47]}  Ba5 {[%clk 0:02:15]} 24. Na4 {[%clk 0:01:44]}  gxh4 {[%clk 0:02:09]} 25. Bxh6 {[%clk 0:01:42]}  Kh7 {[%clk 0:02:03]} 26. Bg5 {[%clk 0:01:35]}  Rg8 {[%clk 0:02:03]} 27. f4 {[%clk 0:01:35]}  Bd8 {[%clk 0:01:57]} 28. Rh1 {[%clk 0:01:18]}  Bxg5 {[%clk 0:01:51]} 29. fxg5 {[%clk 0:01:19]}  Rxg5 {[%clk 0:01:51]} 30. Rxh4+ {[%clk 0:01:19]}  Kg7 {[%clk 0:01:50]} 31. g4 {[%clk 0:01:18]}  Ne7 {[%clk 0:01:39]} 32. Nc5 {[%clk 0:01:16]}  Ng6 {[%clk 0:01:39]} 33. Rh2 {[%clk 0:01:10]}  b6 {[%clk 0:01:35]} 34. Nxa6 {[%clk 0:01:09]}  Rxg4 {[%clk 0:01:36]} 35. Nb8 {[%clk 0:00:56]}  Nf4+ {[%clk 0:01:30]} 36. Kc3 {[%clk 0:00:55]}  Rg3+ {[%clk 0:01:27]} 37. Kb4 {[%clk 0:00:54]}  Ng6 {[%clk 0:01:15]} 38. Nd7 {[%clk 0:00:49]}  b5 {[%clk 0:01:15]} 39. Nf6 {[%clk 0:00:44]}  Rd3 {[%clk 0:01:11]} 40. Rh7+ {[%clk 0:00:40]}  Kf8 {[%clk 0:01:11]} 41. Nd7+ {[%clk 0:00:27]}  Ke7 {[%clk 0:01:11]} 42. Nc5 {[%clk 0:00:27]}  Rxd4+ {[%clk 0:01:11]} 43. Kxb5 {[%clk 0:00:27]}  Nxe5 {[%clk 0:01:12]} 44. b4 {[%clk 0:00:26]}  Kd6 {[%clk 0:01:02]} 45. Nb7+ {[%clk 0:00:23]}  Kc7 {[%clk 0:01:03]} 46. Nc5 {[%clk 0:00:21]}  Rg4 {[%clk 0:00:53]} 47. Nxe6+ {[%clk 0:00:20]}  Kd6 {[%clk 0:00:50]} 48. Nc5 {[%clk 0:00:20]}  d4 {[%clk 0:00:47]} 49. Rh6+ {[%clk 0:00:19]}  Kd5 {[%clk 0:00:48]} 50. Rh3 {[%clk 0:00:17]}  f5 {[%clk 0:00:46]} 51. Ka6 {[%clk 0:00:14]}  f4 {[%clk 0:00:43]} 52. Nd3 {[%clk 0:00:12]}  Nxd3 {[%clk 0:00:41]} 53. Rxd3 {[%clk 0:00:13]}  Kc4 {[%clk 0:00:41]} 54. Rd2 {[%clk 0:00:12]}  f3 {[%clk 0:00:40]} 55. b5 {[%clk 0:00:11]}  Rg2 {[%clk 0:00:39]} 56. Rd1 {[%clk 0:00:10]}  Rxb2 {[%clk 0:00:39]} 57. Rc1+ {[%clk 0:00:10]}  Kd3 {[%clk 0:00:39]} 58. b6 {[%clk 0:00:09]}  Ra2+ {[%clk 0:00:38]} 59. Kb5 {[%clk 0:00:09]}  f2 {[%clk 0:00:32]} 60. Rb1 {[%clk 0:00:08]}  Rb2+ {[%clk 0:00:22]} 61. Rxb2 {[%clk 0:00:08]}  f1=Q {[%clk 0:00:23]} 62. Kc6 {[%clk 0:00:05]}  Kc3 {[%clk 0:00:21]} 63. Rb5 {[%clk 0:00:04]}  Qf7 {[%clk 0:00:17]} 64. Rc5+ {[%clk 0:00:03]}  Kb4 {[%clk 0:00:17]} 65. Rb5+ {[%clk 0:00:03]}  Ka4 {[%clk 0:00:16]} 66. b7 {[%clk 0:00:01]}  Qe8+ {[%clk 0:00:17]} 0-1


[Site "https://www.chess.com"]

[Event "Titled Tuesday Blitz February 28 Early 2023"]
[White "Levine, David"]
[Black "Pourkashiyan, Atousa"]
[WhiteFideId "2011611"]
[BlackFideId "12502014"]
[WhiteElo "2126"]
[BlackElo "2228"]
[Result "0-1"]
[Round "07"]
[TimeControl "180+2"]
[Date "2023.02.28"]
[WhiteClock "0:00:04"]
[BlackClock "0:00:08"]

1. d4 {[%clk 0:02:59]}  g6 {[%clk 0:02:53]} 2. Nf3 {[%clk 0:02:57]}  Bg7 {[%clk 0:02:48]} 3. g3 {[%clk 0:02:57]}  Nf6 {[%clk 0:02:43]} 4. c4 {[%clk 0:02:56]}  O-O {[%clk 0:02:44]} 5. Bg2 {[%clk 0:02:56]}  d6 {[%clk 0:02:42]} 6. O-O {[%clk 0:02:56]}  Nc6 {[%clk 0:02:43]} 7. Nc3 {[%clk 0:02:55]}  e5 {[%clk 0:02:43]} 8. dxe5 {[%clk 0:02:49]}  dxe5 {[%clk 0:02:43]} 9. Bg5 {[%clk 0:02:49]}  Be6 {[%clk 0:02:42]} 10. b3 {[%clk 0:02:43]}  Nd4 {[%clk 0:02:41]} 11. Nxe5 {[%clk 0:02:23]}  h6 {[%clk 0:02:41]} 12. Be3 {[%clk 0:02:17]}  c5 {[%clk 0:02:37]} 13. Nd3 {[%clk 0:02:13]}  Ng4 {[%clk 0:02:33]} 14. Bd2 {[%clk 0:01:59]}  Bf5 {[%clk 0:02:20]} 15. e4 {[%clk 0:01:50]}  Be6 {[%clk 0:02:17]} 16. Nd5 {[%clk 0:01:48]}  f5 {[%clk 0:02:03]} 17. Nxc5 {[%clk 0:01:38]}  Bc8 {[%clk 0:01:45]} 18. h3 {[%clk 0:01:33]}  Ne5 {[%clk 0:01:33]} 19. Be3 {[%clk 0:01:24]}  Nec6 {[%clk 0:01:31]} 20. Rc1 {[%clk 0:01:00]}  b6 {[%clk 0:01:26]} 21. Nd3 {[%clk 0:00:53]}  fxe4 {[%clk 0:01:22]} 22. Bxe4 {[%clk 0:00:51]}  Bxh3 {[%clk 0:01:22]} 23. Bxg6 {[%clk 0:00:50]}  Nf3+ {[%clk 0:01:12]} 24. Kh1 {[%clk 0:00:45]}  Bg4 {[%clk 0:00:47]} 25. N3f4 {[%clk 0:00:42]}  Nfe5 {[%clk 0:00:38]} 26. Qc2 {[%clk 0:00:39]}  Bf3+ {[%clk 0:00:34]} 27. Kg1 {[%clk 0:00:37]}  Qd7 {[%clk 0:00:23]} 28. Be4 {[%clk 0:00:35]}  Rae8 {[%clk 0:00:16]} 29. Bxf3 {[%clk 0:00:34]}  Nxf3+ {[%clk 0:00:16]} 30. Kg2 {[%clk 0:00:34]}  Qg4 {[%clk 0:00:16]} 31. Qg6 {[%clk 0:00:29]}  Nh4+ {[%clk 0:00:16]} 32. Kh2 {[%clk 0:00:28]}  Nxg6 {[%clk 0:00:17]} 33. f3 {[%clk 0:00:19]}  Qg5 {[%clk 0:00:13]} 34. Rce1 {[%clk 0:00:13]}  Nxf4 {[%clk 0:00:12]} 35. Bxf4 {[%clk 0:00:12]}  Qh5+ {[%clk 0:00:12]} 36. Kg2 {[%clk 0:00:11]}  Be5 {[%clk 0:00:11]} 37. g4 {[%clk 0:00:09]}  Qf7 {[%clk 0:00:10]} 38. Bd2 {[%clk 0:00:07]}  Bg7 {[%clk 0:00:09]} 39. Rd1 {[%clk 0:00:04]}  Re2+ {[%clk 0:00:08]} 0-1


[Site "https://www.chess.com"]

[Event "Titled Tuesday Blitz February 28 Early 2023"]
[White "Hoffmann, Asa"]
[Black "Pissama Ntsaou, Martial"]
[WhiteFideId "2001470"]
[BlackFideId "17400864"]
[WhiteElo "2117"]
[BlackElo "2053"]
[Result "0-1"]
[Round "07"]
[TimeControl "180+2"]
[Date "2023.02.28"]
[WhiteClock "0:00:12"]
[BlackClock "0:00:03"]

1. d4 {[%clk 0:02:55]}  d5 {[%clk 0:02:59]} 2. Bg5 {[%clk 0:02:54]}  c6 {[%clk 0:02:57]} 3. e3 {[%clk 0:02:53]}  Qb6 {[%clk 0:02:57]} 4. b3 {[%clk 0:02:52]}  Bf5 {[%clk 0:02:56]} 5. Bd3 {[%clk 0:02:51]}  Bxd3 {[%clk 0:02:53]} 6. Qxd3 {[%clk 0:02:51]}  e6 {[%clk 0:02:53]} 7. Nd2 {[%clk 0:02:47]}  Nd7 {[%clk 0:02:53]} 8. f4 {[%clk 0:02:47]}  Ngf6 {[%clk 0:02:46]} 9. Ngf3 {[%clk 0:02:46]}  Ba3 {[%clk 0:02:43]} 10. Rb1 {[%clk 0:02:45]}  Be7 {[%clk 0:01:51]} 11. O-O {[%clk 0:02:43]}  Nf8 {[%clk 0:01:51]} 12. Ne5 {[%clk 0:02:39]}  Ng6 {[%clk 0:01:50]} 13. c4 {[%clk 0:02:38]}  dxc4 {[%clk 0:01:43]} 14. bxc4 {[%clk 0:02:33]}  Qc7 {[%clk 0:01:43]} 15. Ndf3 {[%clk 0:02:28]}  Rd8 {[%clk 0:01:38]} 16. Qb3 {[%clk 0:02:08]}  Rb8 {[%clk 0:01:27]} 17. Qc2 {[%clk 0:01:55]}  O-O {[%clk 0:01:10]} 18. f5 {[%clk 0:01:54]}  exf5 {[%clk 0:01:10]} 19. Qxf5 {[%clk 0:01:54]}  Qc8 {[%clk 0:00:58]} 20. Nxg6 {[%clk 0:01:42]}  hxg6 {[%clk 0:00:49]} 21. Qxc8 {[%clk 0:01:35]}  Rfxc8 {[%clk 0:00:47]} 22. Ne5 {[%clk 0:01:35]}  Rc7 {[%clk 0:00:44]} 23. h3 {[%clk 0:01:27]}  Rbc8 {[%clk 0:00:35]} 24. Bf4 {[%clk 0:01:25]}  Nh5 {[%clk 0:00:26]} 25. Bh2 {[%clk 0:01:24]}  Bf6 {[%clk 0:00:26]} 26. Nd3 {[%clk 0:01:23]}  Re7 {[%clk 0:00:26]} 27. Rfe1 {[%clk 0:01:17]}  Bg5 {[%clk 0:00:22]} 28. Nf4 {[%clk 0:01:15]}  Nxf4 {[%clk 0:00:20]} 29. Bxf4 {[%clk 0:01:15]}  Bxf4 {[%clk 0:00:20]} 30. exf4 {[%clk 0:01:15]}  Rce8 {[%clk 0:00:18]} 31. Rxe7 {[%clk 0:01:12]}  Rxe7 {[%clk 0:00:18]} 32. Kf2 {[%clk 0:01:12]}  Rd7 {[%clk 0:00:18]} 33. Ke3 {[%clk 0:01:12]}  Kf8 {[%clk 0:00:19]} 34. g4 {[%clk 0:01:12]}  Ke7 {[%clk 0:00:19]} 35. Ke4 {[%clk 0:01:10]}  Kf6 {[%clk 0:00:18]} 36. d5 {[%clk 0:01:10]}  c5 {[%clk 0:00:17]} 37. g5+ {[%clk 0:01:07]}  Ke7 {[%clk 0:00:17]} 38. Re1 {[%clk 0:00:54]}  Kd6 {[%clk 0:00:17]} 39. Kf3 {[%clk 0:00:52]}  Rd8 {[%clk 0:00:17]} 40. Re5 {[%clk 0:00:50]}  a6 {[%clk 0:00:16]} 41. a4 {[%clk 0:00:49]}  Rb8 {[%clk 0:00:15]} 42. Ke4 {[%clk 0:00:48]}  b5 {[%clk 0:00:16]} 43. axb5 {[%clk 0:00:47]}  axb5 {[%clk 0:00:16]} 44. cxb5 {[%clk 0:00:46]}  Rxb5 {[%clk 0:00:16]} 45. Kf3 {[%clk 0:00:45]}  Rb3+ {[%clk 0:00:15]} 46. Kg4 {[%clk 0:00:45]}  Rd3 {[%clk 0:00:14]} 47. Re8 {[%clk 0:00:43]}  Rxd5 {[%clk 0:00:13]} 48. Rg8 {[%clk 0:00:37]}  c4 {[%clk 0:00:13]} 49. Rxg7 {[%clk 0:00:36]}  Ke6 {[%clk 0:00:11]} 50. Rg8 {[%clk 0:00:36]}  Rc5 {[%clk 0:00:11]} 51. Re8+ {[%clk 0:00:32]}  Kd7 {[%clk 0:00:11]} 52. Re2 {[%clk 0:00:30]}  c3 {[%clk 0:00:11]} 53. Rc2 {[%clk 0:00:30]}  Kd6 {[%clk 0:00:11]} 54. h4 {[%clk 0:00:31]}  Kd5 {[%clk 0:00:11]} 55. h5 {[%clk 0:00:31]}  gxh5+ {[%clk 0:00:11]} 56. Kxh5 {[%clk 0:00:31]}  Kd4 {[%clk 0:00:12]} 57. Kh6 {[%clk 0:00:28]}  Kd3 {[%clk 0:00:12]} 58. Rc1 {[%clk 0:00:28]}  c2 {[%clk 0:00:13]} 59. Rf1 {[%clk 0:00:27]}  c1=Q {[%clk 0:00:12]} 60. Rxc1 {[%clk 0:00:27]}  Rxc1 {[%clk 0:00:12]} 61. Kg7 {[%clk 0:00:27]}  Rf1 {[%clk 0:00:12]} 62. Kxf7 {[%clk 0:00:27]}  Rxf4+ {[%clk 0:00:12]} 63. Kg7 {[%clk 0:00:25]}  Ke4 {[%clk 0:00:12]} 64. g6 {[%clk 0:00:25]}  Ke5 {[%clk 0:00:13]} 65. Kh8 {[%clk 0:00:22]}  Kf6 {[%clk 0:00:06]} 66. Kh7 {[%clk 0:00:17]}  Rg4 {[%clk 0:00:05]} 67. Kg8 {[%clk 0:00:13]}  Rxg6+ {[%clk 0:00:04]} 68. Kh8 {[%clk 0:00:13]}  Rg1 {[%clk 0:00:04]} 69. Kh7 {[%clk 0:00:13]}  Rg2 {[%clk 0:00:03]} 70. Kh8 {[%clk 0:00:12]}  Kf7 {[%clk 0:00:03]} 71. Kh7 {[%clk 0:00:12]}  Rh2# {[%clk 0:00:03]} 0-1


[Site "https://www.chess.com"]